Cogmind - Beta 9.4 @@@ ROGUE MODE // 2020.01.21 @ 14:51:34 // AFD2019/Pay2Buy Player: Cookie Result: Self-destructed Performance ------------- Evolutions (4) 2000 Regions Visited (11) 2200 Robots Destroyed (171) 855 Value Destroyed (4739) 4739 Prototype IDs (16) 320 Alien Tech Used (0) 0 Bonus (1661) 1661 TOTAL SCORE: 11775 Bonus ------- High Alert Combat Kills 1210 Follower Combat Kills 198 Met Data Miner 300 Friendly Fire -47 Cogmind --------- Core Integrity 813/850 Matter 83/300 Energy 1/170 System Corruption 0% Temperature Cool (12) Movement Flying (26) Location -6/Factory Parts ------- > --- POWER (3) -------- Makeshift Power Source > --- PROPULSION (4) --- Improved Flight Unit Improved VTOL Module Improved VTOL Module Cooled Nuclear Pulse Thruster > --- UTILITY (6) ------ Improved Signal Interpreter Improved Utility Shielding > --- WEAPON (2) ------- Bore Cannon Long-range Missile Launcher > --- INVENTORY (10) --- Micro Fission Core Advanced Weight Redist. System Advanced Weight Redist. System Plasma Cutter Katana Shock Trap Shock Trap Shock Trap Shock Trap Peak State ------------ > --- POWER ------------ Light Nuclear Core Makeshift Power Source Micro Fission Core > --- PROPULSION ------- Improved Flight Unit Improved VTOL Module Improved VTOL Module Cooled Nuclear Pulse Thruster > --- UTILITY ---------- Advanced Weight Redist. System Advanced Sensor Array Improved Signal Interpreter Improved Utility Shielding > --- WEAPON ----------- Missile Launcher Long-range Missile Launcher > --- INVENTORY -------- Advanced Weight Redist. System Bore Cannon Long-range Missile Launcher Plasma Cutter Shock Trap Shock Trap Shock Trap Shock Trap [Rating: 51] Favorites ----------- Power Makeshift Power Source Engine Makeshift Power Source Power Core Light Nuclear Core Propulsion Improved Flight Unit Flight Unit Improved Flight Unit Utility Improved Signal Interpreter Device Weight Redist. System Processor Improved Signal Interpreter Protection Improved Propulsion Shielding Weapon Missile Launcher Ballistic Cannon Bore Cannon Launcher Missile Launcher Special Weapon Plasma Cutter Slashing Weapon Katana Build | -11 -10 -10 -9 -9 -8 -7 -7 -7 -7 -6 -6 ------- Run | Scr Mat Min Mat Sto Mat Fac Low Low Dat Pro Fac Slots Evolved 8 | . . . 2 . 2 2 . . . . 2 Power 2 | . . . . . . 1 . . . . 1 Propulsion 2 | . . . . . 1 . . . . . 1 Utility 4 | . . . 2 . 1 1 . . . . . Weapon . | . . . . . . . . . . . . Parts Attached 28 | 1 . 1 4 6 2 . 4 1 . 3 6 Power 1 | . . . . 1 . . . . . . . Engine . | . . . . . . . . . . . . Core 1 | . . . . 1 . . . . . . . Reactor . | . . . . . . . . . . . . Propulsion 2 | . . . . 1 . . . . . . 1 Treads . | . . . . . . . . . . . . Leg . | . . . . . . . . . . . . Wheel . | . . . . . . . . . . . . Hover . | . . . . . . . . . . . . Flight 2 | . . . . 1 . . . . . . 1 Utility 1 | . . . 1 . . . . . . . . Device 1 | . . . 1 . . . . . . . . Storage . | . . . . . . . . . . . . Processor . | . . . . . . . . . . . . Hackware . | . . . . . . . . . . . . Protection . | . . . . . . . . . . . . Artifact . | . . . . . . . . . . . . Weapon 24 | 1 . 1 3 4 2 . 4 1 . 3 5 Energy Gun . | . . . . . . . . . . . . Energy Cannon . | . . . . . . . . . . . . Ballistic Gun . | . . . . . . . . . . . . Ballistic Cannon 1 | . . . . . . . . . . . 1 Launcher 15 | . . . 2 4 1 . 1 1 . 3 3 Special Weapon 6 | 1 . 1 1 . 1 . 2 . . . . Impact Weapon . | . . . . . . . . . . . . Slashing Weapon 2 | . . . . . . . 1 . . . 1 Piercing Weapon . | . . . . . . . . . . . . Special Melee Weapon . | . . . . . . . . . . . . Unidentified Prototypes . | . . . . . . . . . . . . Parts Lost 28 | . . . 3 6 5 4 3 1 . 2 4 Power 8 | . . . 1 1 1 1 1 1 . 1 1 Propulsion 1 | . . . . . 1 . . . . . . Utility 8 | . . . . 1 2 2 1 . . 1 1 Weapon 11 | . . . 2 4 1 1 1 . . . 2 Highest Loss Streak 4 | . . . 2 3 2 2 2 1 . 1 4 Average Slot Usage (%) 86 | . 71 84 68 93 86 95 89 94 94 91 72 Engine 7 | . 14 14 2 . 6 14 12 12 7 4 6 Core 4 | . . . 8 10 2 . 1 1 7 9 3 Flight 19 | . 14 14 11 21 17 23 23 23 23 23 25 Device 19 | . 28 22 22 19 18 14 15 17 23 23 9 Processor 7 | . . 5 11 11 9 7 7 7 7 7 6 Protection 10 | . . . . 11 18 22 14 15 15 10 6 Launcher 10 | . 14 14 11 11 9 12 7 9 9 11 6 Special Weapon 4 | . . 13 2 8 1 . 3 4 . . . Naked Turns . | . . . . . . . . . . . . Heaviest Build 29 | 9 8 9 12 15 20 26 22 29 29 29 25 Greatest Support 36 | 12 12 12 12 18 21 27 27 36 30 36 36 Greatest Overweight (x) 1 | . . . . . 1 . . . . . . Average Overweight (x) . | . . . . . . . . . . . . Largest Inventory Capacity 10 | 10 10 10 10 10 10 10 10 10 10 10 10 Average Capacity 10 | 10 10 10 10 10 10 10 10 10 10 10 10 Most Carried 10 | 1 1 7 6 8 7 9 9 7 8 8 10 Average Carried 5 | . 1 4 5 5 5 7 7 7 7 7 8 Final Capacity 10 | 10 10 10 10 10 10 10 10 10 10 10 10 Final Carried 9 | 1 1 7 5 5 7 9 7 7 8 7 9 Class Distribution -------------------- 52% | Mutant 47% | Sprinter Dominant Class ---------------- Mutant | -10/Materials Mutant | -10/Mines Mutant | -9/Materials Mutant | -9/Storage Sprinter | -8/Materials Sprinter | -7/Factory Sprinter | -7/Lower Caves Sprinter | -7/Lower Caves Sprinter | -7/Data Miner Sprinter | -6/Proximity Caves Sprinter | -6/Factory Resources | -11 -10 -10 -9 -9 -8 -7 -7 -7 -7 -6 -6 ----------- Run | Scr Mat Min Mat Sto Mat Fac Low Low Dat Pro Fac Matter Collected 2717 | 182 73 70 487 712 606 10 190 174 . 46 167 Remotely . | . . . . . . . . . . . . Salvage Created 3699 | 182 131 98 629 805 1231 217 134 50 . 69 153 Parts . | . . . . . . . . . . . . Haulers Intercepted 5 | . 1 . 1 2 1 . . . . . . Recyclers Shooed . | . . . . . . . . . . . . Parts Field Recycled . | . . . . . . . . . . . . Retrieved Matter . | . . . . . . . . . . . . Parts Self-Destructed . | . . . . . . . . . . . . Prevented . | . . . . . . . . . . . . Kills | -11 -10 -10 -9 -9 -8 -7 -7 -7 -7 -6 -6 ------- Run | Scr Mat Min Mat Sto Mat Fac Low Low Dat Pro Fac Combat Hostiles Destroyed 117 | . 9 7 26 20 35 8 5 4 . 2 1 Melee 1 | . . . . . . . 1 . . . . Cannons 1 | . . . . . . . 1 . . . . AOE 115 | . 9 7 26 20 35 8 3 4 . 2 1 Classes Destroyed 16 | 2 5 1 1 1 3 . 2 . . 1 . Worker 14 | . . 2 2 3 5 2 . . . . . Builder 10 | . 1 . 2 3 4 . . . . . . Tunneler 6 | 3 . 2 . . 1 . . . . . . Hauler 5 | . 1 . 1 2 1 . . . . . . Recycler 8 | 1 . . 2 1 2 1 . . . . 1 Operator 1 | . . . . . 1 . . . . . . Watcher 10 | . 1 . 4 2 2 1 . . . . . Swarmer 31 | . 6 6 10 . 7 2 . . . . . Grunt 60 | . 3 1 13 11 21 5 2 4 . . . Brawler 2 | . . . . . 1 . 1 . . . . Duelist 1 | . . . . 1 . . . . . . . Protector 1 | . . . . . 1 . . . . . . Sentry 18 | . . . 3 8 5 1 . . . . 1 Hunter 2 | . . . . . . . 1 . . 1 . Programmer 1 | . . . . . . . . . . 1 . Thief 1 | . . . . . . . 1 . . . . Best Kill Streak 21 | 3 12 6 21 11 15 5 3 4 . 1 1 Combat Bots Only 12 | . 9 3 12 7 11 5 3 4 . 1 1 Max Kills in Single Turn 5 | 1 3 4 5 3 4 4 2 2 . 1 1 Gunslinging . | . . . . . . . . . . . . Exploded 4 | . 2 2 4 2 3 4 2 2 . 1 1 Melee 1 | . . . . . . . 1 . . . . Uniques/NPCs Destroyed . | . . . . . . . . . . . . Combat | -11 -10 -10 -9 -9 -8 -7 -7 -7 -7 -6 -6 -------- Run | Scr Mat Min Mat Sto Mat Fac Low Low Dat Pro Fac Damage Taken 2965 | . 75 73 210 557 438 681 93 424 . 203 211 Core 869 | . 8 42 81 165 114 245 13 142 . 22 37 Absorbed by Shields . | . . . . . . . . . . . . Core Remaining (%) 67 | 100 . 80 . 38 79 . . . . 39 . Volleys Fired 256 | 20 12 17 37 76 52 17 10 4 . 3 8 Largest 2 | 1 1 1 2 1 2 2 1 2 . 2 2 Hottest 100 | 20 33 33 66 36 72 72 36 79 . 79 100 Shots Fired 277 | 20 12 17 40 76 54 22 10 7 . 6 13 Gun . | . . . . . . . . . . . . Cannon 4 | . . . . . . . . . . . 4 Launcher 204 | . 12 8 38 47 47 22 8 7 . 6 9 Special 69 | 20 . 9 2 29 7 . 2 . . . . Kinetic 4 | . . . . . . . . . . . 4 Thermal 69 | 20 . 9 2 29 7 . 2 . . . . Explosive 204 | . 12 8 38 47 47 22 8 7 . 6 9 Electromagnetic . | . . . . . . . . . . . . Robot Hit Streak 11 | 5 2 5 6 9 10 2 7 3 . 7 11 Robot Miss Streak 5 | 4 2 3 2 3 4 5 1 1 . . 1 Penetration Max . | . . . . . . . . . . . . Secondary Targets . | . . . . . . . . . . . . Shots Hit Robots 172 | 11 5 9 22 46 39 7 13 3 . 4 13 Core Hits 303 | 4 21 14 69 53 87 26 8 11 . 4 6 Critical Hits 5 | 1 . . . 3 . . . . . . 1 Critical Kills 2 | 1 . . . 1 . . . . . . . Critical Parts Destroyed 3 | . . . . 2 . . . . . . 1 Melee Attacks 21 | . . . . . 9 . 8 . . . 4 Impact . | . . . . . . . . . . . . Slashing 21 | . . . . . 9 . 8 . . . 4 Piercing . | . . . . . . . . . . . . Sneak Attacks 4 | . . . . . 3 . . . . . 1 Combat Hostiles . | . . . . . . . . . . . . Follow-up Attacks . | . . . . . . . . . . . . Damage Inflicted 15131 | 128 985 613 2960 2303 4392 1597 658 709 . 315 471 Guns . | . . . . . . . . . . . . Cannons 26 | . . . . . . . . . . . 26 Explosions 13720 | . 985 532 2940 2095 3832 1597 475 709 . 315 240 Melee 891 | . . . . . 526 . 160 . . . 205 Ramming . | . . . . . . . . . . . . Kinetic 26 | . . . . . . . . . . . 26 Thermal 898 | 128 . 81 20 208 34 404 23 . . . . Explosive 13273 | . 985 532 2897 2095 3832 1193 475 709 . 315 240 Electromagnetic 43 | . . . 43 . . . . . . . . Impact . | . . . . . . . . . . . . Slashing 891 | . . . . . 526 . 160 . . . 205 Piercing . | . . . . . . . . . . . . Highest Corruption 3 | . . . . 1 1 2 2 2 2 3 . Average Corruption 1 | . . . . 1 1 2 2 2 2 2 . Corruption Purged . | . . . . . . . . . . . . Effects 16 | . . . . 6 2 1 2 4 . 1 . Message Errors 7 | . . . . 3 1 . 1 2 . . . Heat Flow Errors 1 | . . . . . . . . 1 . . . Energy Discharges 3 | . . . . 2 . . 1 . . . . Data Loss (minor) 4 | . . . . 1 1 1 . . . 1 . Weapon Failures 1 | . . . . . . . . 1 . . . Overload Shots . | . . . . . . . . . . . . Overflow Damage 655 | . 17 . 128 22 244 145 32 10 . . 57 Projectiles 2 | . . . . 2 . . . . . . . Explosions 453 | . 17 . 128 20 113 145 20 10 . . . Melee 200 | . . . . . 131 . 12 . . . 57 Knockbacks . | . . . . . . . . . . . . Impact . | . . . . . . . . . . . . Kinetic . | . . . . . . . . . . . . Secondary . | . . . . . . . . . . . . Self-Inflicted Damage 206 | . . 39 20 15 48 38 . 46 . . . Shots 8 | . . 2 1 1 2 1 . 1 . . . Rammed . | . . . . . . . . . . . . Targets Rammed . | . . . . . . . . . . . . Kicked . | . . . . . . . . . . . . Crushed . | . . . . . . . . . . . . Highest Temperature 185 | . 3 13 12 16 33 101 12 185 . 30 79 Average Temperature 25 | . 3 6 5 7 6 33 6 61 . 14 30 Received Heat Transfer 621 | . 18 6 39 177 153 99 18 81 . . 30 Siege Activations . | . . . . . . . . . . . . Robots Corrupted . | . . . . . . . . . . . . Combat Hostiles . | . . . . . . . . . . . . Parts Fried . | . . . . . . . . . . . . Impact Corruptions . | . . . . . . . . . . . . Robots Melted . | . . . . . . . . . . . . Combat Hostiles . | . . . . . . . . . . . . Parts Melted . | . . . . . . . . . . . . Heat Transferred 1915 | 444 . 259 74 703 111 250 74 . . . . Parts Sabotaged . | . . . . . . . . . . . . Parts Stolen 1 | . . . . . . . 1 . . . . Parts Stripped . | . . . . . . . . . . . . Power Chain Reactions . | . . . . . . . . . . . . Missiles Intercepted . | . . . . . . . . . . . . Alert | -11 -10 -10 -9 -9 -8 -7 -7 -7 -7 -6 -6 ------- Run | Scr Mat Min Mat Sto Mat Fac Low Low Dat Pro Fac Peak Influence 1227 | 20 304 338 1014 825 1227 1083 . . . . 101 Average Influence 494 | 10 74 243 618 473 796 863 . . . . 68 Maximum Alert Level 4 | . 1 1 3 3 4 3 . . . . . Low Security (%) 22 | 100 84 35 14 . . . . . . . 100 Level 1 21 | . 15 64 12 31 8 . . . . . . Level 2 25 | . . . 21 60 14 29 . . . . . Level 3 29 | . . . 51 7 70 70 . . . . . Level 4 . | . . . . . 5 . . . . . . Level 5 . | . . . . . . . . . . . . High Security . | . . . . . . . . . . . . Max Security . | . . . . . . . . . . . . Squads Dispatched 28 | . . 1 6 9 6 5 . . . . 1 Investigation 7 | . . 1 2 3 . 1 . . . . . Extermination 1 | . . . . . . 1 . . . . . Reinforcement 13 | . . . 4 . 5 3 . . . . 1 Assault 1 | . . . . . 1 . . . . . . Garrison 6 | . . . . 6 . . . . . . . Intercept . | . . . . . . . . . . . . Construction Impeded 5 | . . . 1 . 2 1 . . . . 1 Haulers Reinforced 1 | . . . . . . 1 . . . . . Stealth | -11 -10 -10 -9 -9 -8 -7 -7 -7 -7 -6 -6 --------- Run | Scr Mat Min Mat Sto Mat Fac Low Low Dat Pro Fac Distress Signals 10 | . 1 . 4 3 2 . . . . . . Communications Jammed . | . . . . . . . . . . . . Distress Signals . | . . . . . . . . . . . . Times Spotted 188 | . 10 5 39 25 55 22 6 19 . 5 2 Peak Tracking Total 10 | . 6 3 8 4 10 7 3 7 . 2 1 Tactical Retreats 15 | . . . 3 1 2 3 1 5 . . . Traps | -11 -10 -10 -9 -9 -8 -7 -7 -7 -7 -6 -6 ------- Run | Scr Mat Min Mat Sto Mat Fac Low Low Dat Pro Fac Traps Triggered 3 | . . . . 2 . . . . . . 1 Indirectly . | . . . . . . . . . . . . Trap Hack Attempts . | . . . . . . . . . . . . Triggered . | . . . . . . . . . . . . Disarmed . | . . . . . . . . . . . . Reprogrammed . | . . . . . . . . . . . . Reused . | . . . . . . . . . . . . Traps Extracted . | . . . . . . . . . . . . Installed . | . . . . . . . . . . . . Triggered . | . . . . . . . . . . . . Machines | -11 -10 -10 -9 -9 -8 -7 -7 -7 -7 -6 -6 ---------- Run | Scr Mat Min Mat Sto Mat Fac Low Low Dat Pro Fac Machines Disabled 34 | . 1 1 6 8 7 10 . . . . 1 Max in Single Turn 5 | . 1 1 2 2 1 5 . . . . 1 Machines Sabotaged . | . . . . . . . . . . . . Garrisons Compromised . | . . . . . . . . . . . . Overloaded Fab Kills . | . . . . . . . . . . . . Fab Network Shutdowns . | . . . . . . . . . . . . Hacking | -11 -10 -10 -9 -9 -8 -7 -7 -7 -7 -6 -6 --------- Run | Scr Mat Min Mat Sto Mat Fac Low Low Dat Pro Fac Machines Accessed 33 | . 4 1 3 12 3 4 . . 4 . 2 Terminals 27 | . 4 . 3 11 3 4 . . . . 2 Fabricators . | . . . . . . . . . . . . Repair Stations . | . . . . . . . . . . . . Recycling Units . | . . . . . . . . . . . . Scanalyzers . | . . . . . . . . . . . . Garrison Access 1 | . . . . 1 . . . . . . . Total Hacks 122 | . 16 1 13 37 9 11 . . 28 . 7 Successful 76 | . 10 1 6 18 4 5 . . 28 . 4 Failed 46 | . 6 . 7 19 5 6 . . . . 3 Catastrophic 6 | . . . . 4 1 . . . . . 1 Database Lockouts . | . . . . . . . . . . . . Manual 86 | . 15 . 13 31 9 11 . . . . 7 Terminals 90 | . 16 . 13 34 9 11 . . . . 7 Fabricators . | . . . . . . . . . . . . Repair Stations . | . . . . . . . . . . . . Recycling Units . | . . . . . . . . . . . . Scanalyzers . | . . . . . . . . . . . . Garrison Access 3 | . . . . 3 . . . . . . . Terminal Hacks 50 | . 5 1 2 9 1 2 . . 28 . 2 Record 11 | . . . . . . . . . 11 . . Part Schematic 8 | . . . . . . . . . 8 . . Robot Schematic 6 | . . . . . . . . . 6 . . Prototype ID Bank 3 | . . . . . . . . . 3 . . Open Door 3 | . . 1 . 2 . . . . . . . Branch Access Points 4 | . 1 . 1 . . 1 . . . . 1 Terminal Index 1 | . 1 . . . . . . . . . . Alert Level 3 | . . . . 3 . . . . . . . Unreport Threat 7 | . . . . 4 1 1 . . . . 1 Locate Traps 1 | . 1 . . . . . . . . . . Dispatch Records 1 | . 1 . . . . . . . . . . Recall Reinforcements 1 | . . . 1 . . . . . . . . Zone Layout 1 | . 1 . . . . . . . . . . Fabricator Hacks . | . . . . . . . . . . . . Repair Station Hacks . | . . . . . . . . . . . . Recycling Unit Hacks . | . . . . . . . . . . . . Scanalyzer . | . . . . . . . . . . . . Garrison Access Hacks . | . . . . . . . . . . . . Unauthorized Hacks 73 | . 12 . 12 26 6 11 . . . . 6 Terminals 26 | . 5 . 4 9 3 3 . . . . 2 Assimilate 2 | . 1 . 1 . . . . . . . . Botnet 19 | . 3 . 2 8 2 2 . . . . 2 Operators 5 | . 1 . 1 1 1 1 . . . . . Fabricators . | . . . . . . . . . . . . Repair Stations . | . . . . . . . . . . . . Recycling Units . | . . . . . . . . . . . . Scanalyzers . | . . . . . . . . . . . . Garrison Access . | . . . . . . . . . . . . Data Cores Recovered . | . . . . . . . . . . . . Used . | . . . . . . . . . . . . Hacking Detections 28 | . 4 . 3 12 3 4 . . . . 2 Full Trace Events 7 | . . . 2 3 1 1 . . . . . Feedback Events . | . . . . . . . . . . . . Feedback Blocked . | . . . . . . . . . . . . Robot Schematics Acquired 6 | . . . . . . . . . 6 . . Robots Built . | . . . . . . . . . . . . Matter . | . . . . . . . . . . . . Time . | . . . . . . . . . . . . Total Robot Build Rating . | . . . . . . . . . . . . Part Schematics Acquired 8 | . . . . . . . . . 8 . . Parts Built . | . . . . . . . . . . . . Matter . | . . . . . . . . . . . . Time . | . . . . . . . . . . . . Total Part Build Rating . | . . . . . . . . . . . . Parts Repaired . | . . . . . . . . . . . . Time . | . . . . . . . . . . . . Parts Recycled . | . . . . . . . . . . . . Recycled Matter . | . . . . . . . . . . . . Retrieved Matter . | . . . . . . . . . . . . Retrieved Components . | . . . . . . . . . . . . Parts Scanalyzed . | . . . . . . . . . . . . Part Schematics Acquired . | . . . . . . . . . . . . Parts Damaged . | . . . . . . . . . . . . Bothacking | -11 -10 -10 -9 -9 -8 -7 -7 -7 -7 -6 -6 ------------ Run | Scr Mat Min Mat Sto Mat Fac Low Low Dat Pro Fac Used RIF Installer . | . . . . . . . . . . . . Robots Hacked . | . . . . . . . . . . . . Non-combat . | . . . . . . . . . . . . Combat . | . . . . . . . . . . . . Robot Hacks Applied . | . . . . . . . . . . . . Relay Couplers Released . | . . . . . . . . . . . . Robots Rewired . | . . . . . . . . . . . . Allies Hacked . | . . . . . . . . . . . . Hacks Repelled . | . . . . . . . . . . . . Allies | -11 -10 -10 -9 -9 -8 -7 -7 -7 -7 -6 -6 -------- Run | Scr Mat Min Mat Sto Mat Fac Low Low Dat Pro Fac Total Allies 5 | . 1 . . 3 . . . . . 1 . Largest Group 3 | . 1 1 1 3 1 . . . . 1 . Highest-Rated Group 129 | . 10 10 10 129 99 . . . . 94 . Highest-Rated Ally 99 | . 10 10 10 99 99 . . . . 94 . Total Orders 13 | . 4 7 2 . . . . . . . . STAY 2 | . 2 . . . . . . . . . . GOTO 6 | . . 4 2 . . . . . . . . FOLLOW 5 | . 2 3 . . . . . . . . . Ally Attacks 28 | . . . . 20 . . . . . 8 . Total Damage 952 | . . . . 669 . . . . . 283 . Kills 6 | . . . . 5 . . . . . 1 . Allies Corrupted . | . . . . . . . . . . . . Allies Melted . | . . . . . . . . . . . . Intel | -11 -10 -10 -9 -9 -8 -7 -7 -7 -7 -6 -6 ------- Run | Scr Mat Min Mat Sto Mat Fac Low Low Dat Pro Fac Robot Analysis Total . | . . . . . . . . . . . . Derelict Logs Recovered . | . . . . . . . . . . . . Drone Launches . | . . . . . . . . . . . . Drone Recoveries . | . . . . . . . . . . . . Exploration | -11 -10 -10 -9 -9 -8 -7 -7 -7 -7 -6 -6 ------------- Run | Scr Mat Min Mat Sto Mat Fac Low Low Dat Pro Fac Turns Passed 3517 | 119 220 392 314 768 501 365 279 188 25 206 140 Spaces Moved 5732 | 78 257 748 427 1070 577 602 764 399 82 521 207 Core . | . . . . . . . . . . . . Treads . | . . . . . . . . . . . . Legs . | . . . . . . . . . . . . Wheels . | . . . . . . . . . . . . Hover . | . . . . . . . . . . . . Flight 5732 | 78 257 748 427 1070 577 602 764 399 82 521 207 Fastest Speed 26 | 35 35 35 35 34 32 29 29 29 29 29 26 Average Speed 31 | 35 35 35 35 34 32 29 29 29 29 29 26 Slowest Speed 105 | 35 35 35 35 35 105 29 29 32 32 29 29 Overloaded Moves . | . . . . . . . . . . . . Propulsion Burnouts . | . . . . . . . . . . . . Robots Hopped 22 | . 1 6 1 . . 5 1 8 . . . Cave-ins Triggered 3 | . . . . . 1 2 . . . . . Exploration Rate (%) 49 | 4 38 99 41 88 42 20 73 43 69 71 6 Regions Visited 11 Branch Regions 6 Pre-discovered Areas 1 | . . . . . . . . . 1 . . Known Exits Taken 10 | . 1 1 1 1 1 1 1 1 1 1 . Unknown Exits Taken 1 | 1 . . . . . . . . . . . Scrap Searched . | . . . . . . . . . . . . Spaces Dug 107 | . 7 . 29 64 . . . . . . 7 Terrain Destroyed 1324 | . 68 76 204 333 275 127 77 75 . 72 17 Melee . | . . . . . . . . . . . . Projectile . | . . . . . . . . . . . . AOE 1324 | . 68 76 204 333 275 127 77 75 . 72 17 Actions | -11 -10 -10 -9 -9 -8 -7 -7 -7 -7 -6 -6 --------- Run | Scr Mat Min Mat Sto Mat Fac Low Low Dat Pro Fac Total 6985 | 130 373 846 546 1360 805 760 795 448 82 568 272 Wait 955 | 30 106 80 80 204 164 146 9 53 . 40 43 Move 5679 | 77 254 736 424 1069 575 590 761 385 81 520 207 Hop 18 | . 1 5 1 . . 5 1 5 . . . Pick Up 10 | . . 6 . 3 . . . . . . 1 Fast Attach 2 | . . . . . . . . . . . 2 Attach 21 | 1 . 1 2 6 1 . 4 . . 3 3 Detach 16 | 2 . 1 . 2 2 1 2 . 1 2 3 Swap 5 | . . . 2 . 1 . . 1 . . 1 Drop . | . . . . . . . . . . . . Fire 256 | 20 12 17 37 76 52 17 10 4 . 3 8 Melee 21 | . . . . . 9 . 8 . . . 4 Ram . | . . . . . . . . . . . . Kick . | . . . . . . . . . . . . Crush . | . . . . . . . . . . . . Escape Stasis 2 | . . . . . 1 1 . . . . . Rewire . | . . . . . . . . . . . . Trap . | . . . . . . . . . . . . Miscellaneous . | . . . . . . . . . . . . Route ------- -11/Scrapyard -10/Materials (discovered 3 exits: Mat / *Min x2) -10/Mines (discovered 2 exits: *Mat x2) -9/Materials (discovered 3 exits: Min / *Sto x2) -9/Storage -8/Materials -7/Factory (discovered 2 exits: *Low x2) -7/Lower Caves -7/Lower Caves -7/Data Miner -6/Proximity Caves -6/Factory (discovered 2 exits: Low x2) History --------- Turn | Location | Event 3 | -11/Scrapyard | Discovered new exit (range 15) 120 | -11/Scrapyard | Entered Materials 237 | -10/Materials | Identified exit to Mines 287 | -10/Materials | Discovered new exit (range 19) 312 | -10/Materials | Build established: Mutant 340 | -10/Materials | Entered Mines 340 | -10/Mines | Accompanied by 1 ally 342 | -10/Mines | Destroyed 9 combat bots 382 | -10/Mines | Found a hidden stash of uninstalled traps 454 | -10/Mines | Discovered new exit (range 13) 467 | -10/Mines | Discovered new exit (range 5) 490 | -10/Mines | A weapon hastily lodged in a ceiling crevice suddenly fell to the ground 537 | -10/Mines | Met a Derelict shopkeep closing up shop 574 | -10/Mines | Received a Rocket Launcher from a helpful Derelict 618 | -10/Mines | Identified exit to Materials 732 | -10/Mines | Entered Materials 732 | -9/Materials | Accompanied by 1 ally 732 | -9/Materials | Evolved 2 slots: Utility x2 835 | -9/Materials | Identified exit to Mines 835 | -9/Materials | Identified exit to Storage 841 | -9/Materials | Destroyed 12 combat bots 1046 | -9/Materials | Entered Storage 1192 | -9/Storage | Destroyed 7 combat bots 1351 | -9/Storage | Core integrity fell below 50% 1375 | -9/Storage | Met 01-MTF 1387 | -9/Storage | Lost 3 parts (1u2w) 1691 | -9/Storage | Discovered new exit (range 16) 1696 | -9/Storage | Identified exit to Materials 1814 | -9/Storage | Entered Materials 1814 | -8/Materials | Accompanied by 1 ally 1814 | -8/Materials | Evolved 2 slots: Propulsion x1, Utility x1 1819 | -8/Materials | 01-MTF left 1901 | -8/Materials | Destroyed 9 combat bots 1961 | -8/Materials | Destroyed 7 combat bots 1961 | -8/Materials | Crushed by falling debris 2176 | -8/Materials | Build established: Sprinter 2214 | -8/Materials | First assault squad dispatched 2304 | -8/Materials | Discovered new exit (range 16) 2311 | -8/Materials | Identified exit to Factory 2315 | -8/Materials | Entered Factory 2315 | -7/Factory | Evolved 2 slots: Power x1, Utility x1 2317 | -7/Factory | Destroyed 11 combat bots 2557 | -7/Factory | Crushed by falling debris 2562 | -7/Factory | Crushed by falling debris 2575 | -7/Factory | Identified exit to Lower Caves 2680 | -7/Factory | Entered Lower Caves 2759 | -7/Lower Caves | Katana stolen by Master Thief 2949 | -7/Lower Caves | Discovered new exit (range 16) 2953 | -7/Lower Caves | Identified exit to Lower Caves 2956 | -7/Lower Caves | Spotted B-75 Beast 2959 | -7/Lower Caves | Entered another Lower Caves area 3007 | -7/Lower Caves | Attracted the attention of an 0b10 base 3124 | -7/Lower Caves | Core integrity fell below 50% 3143 | -7/Lower Caves | Discovered new exit (range 13) 3144 | -7/Lower Caves | Attracted the attention of an 0b10 checkpoint 3147 | -7/Lower Caves | Identified exit to Data Miner 3147 | -7/Lower Caves | Entered Data Miner 3147 | -7/Data Miner | Discovered new exit (range 6) 3150 | -7/Data Miner | Identified exit to Proximity Caves 3155 | -7/Data Miner | Met Data Miner 3161 | -7/Data Miner | Learned location of Section 7 (-2) 3161 | -7/Data Miner | Acquired the access code to Warlord's prototype stash 3166 | -7/Data Miner | Received God Mode back door access code from Data Miner 3172 | -7/Data Miner | Entered Proximity Caves 3256 | -6/Proximity Caves | Escorted by Enhanced Grunt 3302 | -6/Proximity Caves | Spotted B-75 Beast 3332 | -6/Proximity Caves | Attracted the attention of an 0b10 checkpoint 3369 | -6/Proximity Caves | Discovered new exit (range 8) 3377 | -6/Proximity Caves | Identified exit to Factory 3378 | -6/Proximity Caves | Entered Factory 3378 | -6/Factory | Evolved 2 slots: Power x1, Propulsion x1 3472 | -6/Factory | Lost 4 parts (1p1u2w) 3513 | -6/Factory | Identified exit to Lower Caves 3518 | -6/Factory | Self-destructed Last Messages --------------- 03457_ Connecting with Terminal... >>Trojan(Botnet) Trojan loaded successfully. Testing... Terminal linked with 0 systems. Awaiting botnet instructions. 03459_ U-05 Engineer lays Concrete. 03513_ Connecting with Terminal... >>Trojan(Botnet) Trojan loaded successfully. Testing... Terminal linked with 1 system. Awaiting botnet instructions. >>Access(Branch) Found 2 branch access points: (22,125) Lower Caves (154,114) Lower Caves Map updated. >>Alert(Purge) Purged threat record, alert level lowered. Map ----- +----------------------------------------------------+ | ?????????"" ????????????????# # """#?? | | ????????? ??????????????????# # #?? | | ????????????????????????????# ################ | | ????????????????????????????# + | | ????????????????????????????# ##### """" | | ????????????????????????????# #???# """" | | ????????????????????????????# #???# """" | | ?????????????????????????? #???# """" | | ?????????????????????????# ??# | | ?????????????????????????# ?# | | ?????????????????????????# """"" + | | ?????????????????????????#### """"" # | | ????????????????????????????# """ # """" | | ????????????????????????????# # """" | | ????????????????????????????# ??? # """" | | ???????????????????????????? ???? "" # """" | | ???????????????????????????? ???? Y" # """" | | ???????????????????????????? ????? ?? # """" | | ???????????????????????????? ?????? ??? # """" | | ???????????????????????????????????????? # | | ????????????????????????##+####+######## # | | ????????????????????????# ## #####+### | | ????????????????????????# """ """ T ## #???# #?? | | ????????????????????????# """ """ ## #???# #?? | | ????????????????????????# """ """ ## #???# #?? | | ????????????????????????#@ ## #???# #?? | | ????????????????????????# """ """ """ ## #???# #?? | | ????????????????????????# """ """ """ ## ##### #?? | | ????????????????????????# """ """ """ + #?? | | ????????????????????????# ##########?? | | ????????????????????????# #??????????? | | ????????????????????????# #??????????? | | ????????????????????????###############??????????? | | | | | | | | | | | | | | | | | | | | | | | | | | | | | | | | | | | +----------------------------------------------------+ Best States ------------- Heat Dissipation 37 Energy Generation 37 Energy Capacity 300 Matter Stores 300 Matter Capacity 300 Sight Range 16 Robot Scan Range 16 Terrain Scan Density 10 Additional Mass Support 18 Propulsion Shielding 66 Utility Shielding 66 Weapon Shielding 66 Evasion (%) 64 Item Schematics ----------------- Combat Drone Bay | -7/Data Miner | Free Lgt. Regenerative Plating | -7/Data Miner | Free Exp. Sensor Array | -7/Data Miner | Free Exp. Terrain Scan Processor | -7/Data Miner | Free Exp. Targeting Computer | -7/Data Miner | Free Exp. Transmission Jammer | -7/Data Miner | Free Mni. Smartbomb Launcher | -7/Data Miner | Free Plasma Sword | -7/Data Miner | Free Robot Schematics ------------------ S-27 Virus | -7/Data Miner | Free G-50 Soldier | -7/Data Miner | Free L-41 Fighter | -7/Data Miner | Free H-66 Slayer | -7/Data Miner | Free P-70 Sage | -7/Data Miner | Free I-36 Angel | -7/Data Miner | Free Fabricated ------------ Nothing Alien Tech Used ----------------- None Achievements -------------- Cya! Launcher Specialist Challenges ------------ None Cogshop Purchases (41) ------------------------ Imp. Flight Unit (1049) Lgt. Ion Engine (599) Rocket Launcher (1049) Weight Redist. System (699) Imp. Sensor Array (699) Plasma Cutter (699) Imp. Signal Interpreter (690) Lgt. Nuclear Core (629) Plasma Cutter (786) Missile Launcher (1255) Cesium-ion Thruster (1224) Imp. Propulsion Shielding (775) Lgt. Nuclear Core (679) Missile Launcher (1258) Missile Launcher (1258) Plasma Cutter (746) Adv. Sensor Array (791) Weapon Shielding (502) Imp. VTOL Module (1231) Mak. Power Source (818) Adv. Weight Redist. System (741) Katana (1039) Missile Launcher (1201) Missile Launcher (1201) Adv. Weight Redist. System (803) Imp. Utility Shielding (734) Imp. VTOL Module (1545) Mak. Power Source (959) Adv. Weight Redist. System (775) Lrn. Missile Launcher (1842) Lrn. Missile Launcher (1842) Lgt. Nuclear Core (741) Lgt. Deuterium Engine (959) Imp. Weapon Shielding (748) Missile Launcher (1532) Adv. Weight Redist. System (694) Lgt. Nuclear Core (1015) Mic. Fission Core (1615) Mak. Power Source (951) Cld. Nuclear Pulse Thruster (1894) Katana (1147) Game ------ Seed NeutralizingSigixDoublenader Manual? 0 Play Time 01:46:24 Cumulative 49.7 hours Start 2020.01.21 @ 08:07:31 End 2020.01.21 @ 14:51:34 Sessions 3 Manual Loads 0 Difficulty Rogue Special Mode AFD2019/Pay2Buy Game No. 74 Rogue 74 Adventurer 0 Explorer 0 Win Type - Total 1 Types 1/0/0/0/0/0/0 Lore% 34 Gallery% 36 Achievement% 32 Wizard Run 0 Options --------- ASCII 0 Keyboard 0 Movement Mouse Keybinds 0 Fullscreen 1 Font 18/SmallcapsGlow Map View 76x50 Tactical HUD 1 Map Filters NONE Filters NONE Steam 1 RUN: 36336e5c-3d42-486f-baa9-03ec1a57d65f